fUSD/lending_fUSD_20260621
["ID","MTS","AMOUNT","RATE_DAILY","PERIOD"]
[425896564,1782030659000,-500.0,0.00027945,2]
[425896573,1782030659000,-500.0,0.00027945,2]
[425896575,1782030659000,-500.0,0.00027945,2]
[425896567,1782030659000,-500.0,0.00027945,2]
[425896572,1782030659000,-500.0,0.00027945,2]
[425896587,1782030659000,-500.0,0.00027945,2]
[425896571,1782030659000,-500.0,0.00027945,2]
[425896574,1782030659000,-500.0,0.00027945,2]
[425896568,1782030659000,-500.0,0.00027945,2]
[425896566,1782030659000,-500.0,0.00027945,2]
[425896570,1782030659000,-500.0,0.00027945,2]
[425896579,1782030659000,-500.0,0.00027945,2]
[425896577,1782030659000,-1312.08,0.00027945,2]
[425896585,1782030659000,-629.13,0.00027945,2]
[425896580,1782030659000,-500.0,0.00027945,2]
[425896578,1782030659000,-500.0,0.00027945,2]
[425896584,1782030659000,-500.0,0.00027945,2]
[425896576,1782030659000,-500.0,0.00027945,2]
[425896569,1782030659000,-500.0,0.00027945,2]
[425896608,1782030659000,-500.0,0.00027945,2]
[425896614,1782030659000,-500.0,0.00027945,2]
[425896641,1782030659000,-500.0,0.00027945,2]
[425896640,1782030659000,-631.69,0.00027945,2]
[425896636,1782030659000,-202.57867097,0.00027945,2]
[425896652,1782030659000,-500.0,0.00027945,2]
[425896642,1782030659000,-500.0,0.00027945,2]
[425896643,1782030659000,-500.0,0.00027945,2]
[425896644,1782030659000,-500.0,0.00027945,2]
[425896645,1782030659000,-620.76,0.00027945,2]
[425896646,1782030659000,-152.20845448,0.00027945,2]
[425896650,1782030659000,-774.62,0.00027945,2]
[425896637,1782030659000,-507.94656041,0.00027945,2]
[425896649,1782030659000,-500.0,0.00027945,2]
[425896651,1782030659000,-534.93869648,0.00027945,2]
[425896653,1782030659000,-500.0,0.00027945,2]
[425896654,1782030659000,-986.01,0.00027945,2]
[425896655,1782030659000,-500.0,0.00027945,2]
[425896656,1782030659000,-644.27153407,0.00027945,2]
[425896657,1782030659000,-500.0,0.00027945,2]
[425896660,1782030659000,-500.0,0.00027945,2]
[425896658,1782030659000,-500.0,0.00027945,2]
[425896659,1782030659000,-500.0,0.00027945,2]
[425896611,1782030659000,-500.0,0.00027945,2]
[425896647,1782030659000,-1091.13,0.00027945,2]
[425896639,1782030659000,-500.0,0.00027945,2]
[425896648,1782030659000,-802.02,0.00027945,2]
[425896631,1782030659000,-520.28772092,0.00027945,2]
[425896615,1782030659000,-500.0,0.00027945,2]
[425896638,1782030659000,-500.0,0.00027945,2]
[425896616,1782030659000,-500.0,0.00027945,2]
[425896612,1782030659000,-500.0,0.00027945,2]
[425896613,1782030659000,-512.54475205,0.00027945,2]
[425896619,1782030659000,-500.0,0.00027945,2]
[425896617,1782030659000,-675.07,0.00027945,2]
[425896623,1782030659000,-500.0,0.00027945,2]
[425896622,1782030659000,-500.0,0.00027945,2]
[425896620,1782030659000,-500.0,0.00027945,2]
[425896621,1782030659000,-500.0,0.00027945,2]
[425896618,1782030659000,-500.0,0.00027945,2]
[425896635,1782030659000,-641.37,0.00027945,2]
[425896627,1782030659000,-500.0,0.00027945,2]
[425896626,1782030659000,-500.0,0.00027945,2]
[425896624,1782030659000,-577.8763875,0.00027945,2]
[425896629,1782030659000,-500.0,0.00027945,2]
[425896628,1782030659000,-1539.78,0.00027945,2]
[425896630,1782030659000,-500.0,0.00027945,2]
[425896633,1782030659000,-513.04212272,0.00027945,2]
[425896634,1782030659000,-500.0,0.00027945,2]
[425896625,1782030659000,-500.0,0.00027945,2]
[425896632,1782030659000,-500.0,0.00027945,2]
[425896691,1782030660000,-211.13693263,0.00027945,2]
[425896693,1782030660000,-500.0,0.00027945,2]
[425896700,1782030660000,-1259.13,0.00027945,2]
[425896703,1782030660000,-500.0,0.00027945,2]
[425896692,1782030660000,-500.0,0.00027945,2]
[425896687,1782030660000,-500.0,0.00027945,2]
[425896702,1782030660000,-500.0,0.00027945,2]
[425896701,1782030660000,-500.0,0.00027945,2]
[425896690,1782030660000,-592.77,0.00027945,2]
[425896699,1782030660000,-500.0,0.00027945,2]
[425896696,1782030660000,-620.64352407,0.00027945,2]
[425896694,1782030660000,-500.0,0.00027945,2]
[425896707,1782030660000,-538.55772886,0.00027945,2]
[425896695,1782030660000,-500.0,0.00027945,2]
[425896698,1782030660000,-837.97,0.00027945,2]
[425896712,1782030660000,-500.0,0.00027945,2]
[425896711,1782030660000,-500.0,0.00027945,2]
[425896704,1782030660000,-500.0,0.00027945,2]
[425896714,1782030660000,-500.0,0.00027945,2]
[425896709,1782030660000,-500.0,0.00027945,2]
[425896710,1782030660000,-500.0,0.00027945,2]
[425896706,1782030660000,-500.0,0.00027945,2]
[425896705,1782030660000,-576.792695,0.00027945,2]
[425896686,1782030660000,-512.49735946,0.00027945,2]
[425896697,1782030660000,-500.0,0.00027945,2]
[425896688,1782030660000,-1129.47,0.00027945,2]
[425896663,1782030660000,-500.0,0.00027945,2]
[425896683,1782030660000,-579.95,0.00027945,2]
[425896713,1782030660000,-500.0,0.00027945,2]
[425896664,1782030660000,-500.0,0.00027945,2]
[425896661,1782030660000,-500.0,0.00027945,2]
[425896662,1782030660000,-530.99,0.00027945,2]
[425896665,1782030660000,-500.0,0.00027945,2]
[425896673,1782030660000,-500.0,0.00027945,2]
[425896667,1782030660000,-500.0,0.00027945,2]
[425896674,1782030660000,-500.0,0.00027945,2]
[425896670,1782030660000,-831.94,0.00027945,2]
[425896668,1782030660000,-500.0,0.00027945,2]
[425896666,1782030660000,-500.0,0.00027945,2]
[425896689,1782030660000,-500.0,0.00027945,2]
[425896677,1782030660000,-251.90843351,0.00027945,2]
[425896672,1782030660000,-500.0,0.00027945,2]
[425896675,1782030660000,-992.95,0.00027945,2]
[425896671,1782030660000,-500.0,0.00027945,2]
[425896676,1782030660000,-500.0,0.00027945,2]
[425896678,1782030660000,-500.0,0.00027945,2]
[425896679,1782030660000,-500.0,0.00027945,2]
[425896682,1782030660000,-500.0,0.00027945,2]
[425896685,1782030660000,-500.0,0.00027945,2]
[425896680,1782030660000,-859.64,0.00027945,2]
[425896684,1782030660000,-500.0,0.00027945,2]
[425896681,1782030660000,-500.0,0.00027945,2]
[425896669,1782030660000,-500.0,0.00027945,2]
[425896715,1782030660000,-500.0,0.00027945,2]
[425896750,1782030660000,-500.0,0.00027945,2]
[425896716,1782030660000,-500.0,0.00027945,2]
[425896748,1782030660000,-500.0,0.00027945,2]
[425896746,1782030660000,-500.0,0.00027945,2]
[425896749,1782030660000,-500.0,0.00027945,2]
[425896741,1782030660000,-594.98,0.00027945,2]
[425896745,1782030660000,-504.75,0.00027945,2]
[425896751,1782030660000,-500.0,0.00027945,2]
[425896755,1782030660000,-500.0,0.00027945,2]
[425896752,1782030660000,-500.0,0.00027945,2]
[425896759,1782030660000,-500.0,0.00027945,2]
[425896757,1782030660000,-500.0,0.00027945,2]
[425896760,1782030660000,-500.0,0.00027945,2]
[425896739,1782030660000,-500.0,0.00027945,2]
[425896754,1782030660000,-500.0,0.00027945,2]
[425896753,1782030660000,-533.80888956,0.00027945,2]
[425896758,1782030660000,-500.0,0.00027945,2]
[425896763,1782030660000,-920.46,0.00027945,2]
[425896762,1782030660000,-500.0,0.00027945,2]
[425896764,1782030660000,-500.0,0.00027945,2]
[425896765,1782030660000,-500.0,0.00027945,2]
[425896766,1782030660000,-1047.94,0.00027945,2]
[425896770,1782030660000,-500.0,0.00027945,2]
[425896767,1782030660000,-500.0,0.00027945,2]
[425896768,1782030660000,-761.28,0.00027945,2]
[425896708,1782030660000,-500.0,0.00027945,2]
[425896761,1782030660000,-563.13855028,0.00027945,2]
[425896740,1782030660000,-632.68,0.00027945,2]
[425896756,1782030660000,-500.0,0.00027945,2]
[425896742,1782030660000,-500.0,0.00027945,2]
[425896769,1782030660000,-500.0,0.00027945,2]
[425896721,1782030660000,-500.0,0.00027945,2]
[425896718,1782030660000,-609.05,0.00027945,2]
[425896727,1782030660000,-291.77283641,0.00027945,2]
[425896717,1782030660000,-500.0,0.00027945,2]
[425896722,1782030660000,-500.0,0.00027945,2]
[425896724,1782030660000,-500.0,0.00027945,2]
[425896726,1782030660000,-500.0,0.00027945,2]
[425896725,1782030660000,-500.0,0.00027945,2]
[425896720,1782030660000,-500.0,0.00027945,2]
[425896719,1782030660000,-589.35,0.00027945,2]
[425896735,1782030660000,-1150.43,0.00027945,2]
[425896723,1782030660000,-500.0,0.00027945,2]
[425896734,1782030660000,-500.0,0.00027945,2]
[425896744,1782030660000,-534.41,0.00027945,2]
[425896728,1782030660000,-500.0,0.00027945,2]
[425896747,1782030660000,-559.47968489,0.00027945,2]
[425896743,1782030660000,-553.13,0.00027945,2]
[425896732,1782030660000,-500.0,0.00027945,2]
[425896738,1782030660000,-500.0,0.00027945,2]
[425896737,1782030660000,-500.0,0.00027945,2]
[425896736,1782030660000,-545.35,0.00027945,2]
[425896731,1782030660000,-610.58,0.00027945,2]
[425896733,1782030660000,-651.77,0.00027945,2]
[425896729,1782030660000,-500.0,0.00027945,2]
[425896730,1782030660000,-500.0,0.00027945,2]
[425896790,1782030661000,-500.0,0.00027945,2]
[425896792,1782030661000,-500.0,0.00027945,2]
[425896789,1782030661000,-500.0,0.00027945,2]
[425896783,1782030661000,-500.0,0.00027945,2]
[425896791,1782030661000,-500.0,0.00027945,2]
[425896793,1782030661000,-500.0,0.00027945,2]
[425896802,1782030661000,-661.2,0.00027945,2]
[425896796,1782030661000,-500.0,0.00027945,2]
[425896797,1782030661000,-500.0,0.00027945,2]
[425896795,1782030661000,-1551.57,0.00027945,2]
[425896798,1782030661000,-500.0,0.00027945,2]
[425896788,1782030661000,-500.0,0.00027945,2]
[425896799,1782030661000,-516.2293821,0.00027945,2]
[425896794,1782030661000,-607.86865031,0.00027945,2]
[425896787,1782030661000,-500.0,0.00027945,2]
[425896772,1782030661000,-522.70265637,0.00027945,2]
[425896784,1782030661000,-500.0,0.00027945,2]
[425896782,1782030661000,-904.2,0.00027945,2]
[425896786,1782030661000,-500.0,0.00027945,2]
[425896779,1782030661000,-500.0,0.00027945,2]
[425896780,1782030661000,-500.0,0.00027945,2]
[425896775,1782030661000,-511.74051271,0.00027945,2]
[425896777,1782030661000,-500.0,0.00027945,2]
[425896781,1782030661000,-500.0,0.00027945,2]
[425896776,1782030661000,-500.0,0.00027945,2]
[425896778,1782030661000,-500.0,0.00027945,2]
[425896774,1782030661000,-500.0,0.00027945,2]
[425896773,1782030661000,-500.0,0.00027945,2]
[425896771,1782030661000,-603.17677877,0.00027945,2]
[425896804,1782030661000,-500.0,0.00027945,2]
[425896785,1782030661000,-500.0,0.00027945,2]
[425896803,1782030661000,-500.0,0.00027945,2]
[425896805,1782030661000,-500.0,0.00027945,2]
[425896800,1782030661000,-500.0,0.00027945,2]
[425896823,1782030661000,-526.71452309,0.00027945,2]
[425896819,1782030661000,-518.66496677,0.00027945,2]
[425896822,1782030661000,-2757.04,0.00027945,2]
[425896827,1782030661000,-500.0,0.00027945,2]
[425896828,1782030661000,-500.0,0.00027945,2]
[425896826,1782030661000,-869.82,0.00027945,2]
[425896824,1782030661000,-500.0,0.00027945,2]
[425896829,1782030661000,-540.01,0.00027945,2]
[425896833,1782030661000,-500.0,0.00027945,2]
[425896832,1782030661000,-500.0,0.00027945,2]
[425896834,1782030661000,-500.0,0.00027945,2]
[425896835,1782030661000,-500.0,0.00027945,2]
[425896801,1782030661000,-500.0,0.00027945,2]
[425896836,1782030661000,-500.0,0.00027945,2]
[425896830,1782030661000,-514.32169163,0.00027945,2]
[425896821,1782030661000,-500.0,0.00027945,2]
[425896831,1782030661000,-546.96,0.00027945,2]
[425896820,1782030661000,-500.0,0.00027945,2]
[425896825,1782030661000,-500.0,0.00027945,2]
[425896807,1782030661000,-471.34774181,0.00027945,2]
[425896810,1782030661000,-500.0,0.00027945,2]
[425896808,1782030661000,-500.0,0.00027945,2]
[425896806,1782030661000,-216.59211478,0.00027945,2]
[425896809,1782030661000,-500.0,0.00027945,2]
[425896811,1782030661000,-500.0,0.00027945,2]
[425896816,1782030661000,-500.0,0.00027945,2]
[425896813,1782030661000,-500.0,0.00027945,2]
[425896812,1782030661000,-959.52,0.00027945,2]
[425896814,1782030661000,-500.0,0.00027945,2]
[425896817,1782030661000,-500.0,0.00027945,2]
[425896815,1782030661000,-500.0,0.00027945,2]
[425896818,1782030661000,-500.0,0.00027945,2]
[425896874,1782030662000,-500.0,0.00027945,2]
[425896876,1782030662000,-1104.75,0.00027945,2]
[425896873,1782030662000,-1669.63,0.00027945,2]
[425896868,1782030662000,-935.34,0.00027945,2]
[425896864,1782030662000,-500.0,0.00027945,2]
[425896863,1782030662000,-500.0,0.00027945,2]
[425896866,1782030662000,-500.0,0.00027945,2]
[425896870,1782030662000,-500.0,0.00027945,2]
[425896867,1782030662000,-1631.14,0.00027945,2]
[425896869,1782030662000,-500.0,0.00027945,2]
[425896871,1782030662000,-500.0,0.00027945,2]
[425896872,1782030662000,-2256.95,0.00027945,2]
[425896884,1782030662000,-500.0,0.00027945,2]
[425896877,1782030662000,-500.0,0.00027945,2]
[425896875,1782030662000,-500.0,0.00027945,2]
[425896879,1782030662000,-700.0,0.00027945,7]
[425896881,1782030662000,-500.0,0.00027945,2]
[425896880,1782030662000,-500.0,0.00027945,2]
[425896891,1782030662000,-1974.92,0.00027945,2]
[425896883,1782030662000,-500.0,0.00027945,2]
[425896860,1782030662000,-646.77,0.00027945,2]
[425896878,1782030662000,-500.0,0.00027945,2]
[425896861,1782030662000,-500.0,0.00027945,2]
[425896847,1782030662000,-500.0,0.00027945,2]
[425896865,1782030662000,-500.0,0.00027945,2]
[425896885,1782030662000,-4789.96,0.00027945,2]
[425896837,1782030662000,-500.0,0.00027945,2]
[425896838,1782030662000,-500.0,0.00027945,2]
[425896840,1782030662000,-456.54935189,0.00027945,2]
[425896839,1782030662000,-504.55,0.00027945,2]
[425896842,1782030662000,-662.25,0.00027945,2]
[425896841,1782030662000,-500.0,0.00027945,2]
[425896843,1782030662000,-500.0,0.00027945,2]
[425896844,1782030662000,-500.0,0.00027945,2]
[425896848,1782030662000,-1233.28,0.00027945,2]
[425896862,1782030662000,-500.0,0.00027945,2]
[425896845,1782030662000,-500.0,0.00027945,2]
[425896849,1782030662000,-500.0,0.00027945,2]
[425896850,1782030662000,-500.0,0.00027945,2]
[425896857,1782030662000,-500.0,0.00027945,2]
[425896851,1782030662000,-500.0,0.00027945,2]
[425896852,1782030662000,-523.34070267,0.00027945,2]
[425896853,1782030662000,-500.0,0.00027945,2]
[425896855,1782030662000,-493.53555432,0.00027945,2]
[425896854,1782030662000,-302.52690969,0.00027945,2]
[425896856,1782030662000,-517.67184534,0.00027945,2]
[425896858,1782030662000,-500.0,0.00027945,2]
[425896846,1782030662000,-500.0,0.00027945,2]
[425896882,1782030662000,-500.0,0.00027945,2]
[425896859,1782030662000,-500.0,0.00027945,2]
[425896890,1782030662000,-845.19,0.00027945,2]
[425896921,1782030662000,-500.0,0.00027945,2]
[425896920,1782030662000,-1132.92,0.00027945,2]
[425896916,1782030662000,-500.0,0.00027945,2]
[425896913,1782030662000,-500.0,0.00027945,2]
[425896918,1782030662000,-500.0,0.00027945,2]
[425896915,1782030662000,-500.0,0.00027945,2]
[425896917,1782030662000,-4274.09,0.00027945,2]
[425896923,1782030662000,-500.0,0.00027945,2]
[425896922,1782030662000,-500.0,0.00027945,2]
[425896926,1782030662000,-500.0,0.00027945,2]
[425896914,1782030662000,-500.0,0.00027945,2]
[425896931,1782030662000,-500.0,0.00027945,2]
[425896929,1782030662000,-500.0,0.00027945,2]
[425896925,1782030662000,-500.0,0.00027945,2]
[425896928,1782030662000,-1070.05,0.00027945,2]
[425896927,1782030662000,-500.0,0.00027945,2]
[425896932,1782030662000,-2291.39,0.00027945,2]
[425896933,1782030662000,-500.0,0.00027945,2]
[425896936,1782030662000,-500.0,0.00027945,2]
[425896935,1782030662000,-1620.05,0.00027945,2]
[425896934,1782030662000,-500.0,0.00027945,2]
[425896886,1782030662000,-500.0,0.00027945,2]
[425896924,1782030662000,-1376.25,0.00027945,2]
[425896919,1782030662000,-500.0,0.00027945,2]
[425896930,1782030662000,-500.0,0.00027945,2]
[425896905,1782030662000,-500.0,0.00027945,2]
[425896887,1782030662000,-500.0,0.00027945,2]
[425896908,1782030662000,-500.0,0.00027945,2]
[425896888,1782030662000,-500.0,0.00027945,2]
[425896889,1782030662000,-500.0,0.00027945,2]
[425896902,1782030662000,-500.0,0.00027945,2]
[425896892,1782030662000,-1174.46,0.00027945,2]
[425896903,1782030662000,-500.0,0.00027945,2]
[425896898,1782030662000,-605.58365149,0.00027945,2]
[425896895,1782030662000,-500.0,0.00027945,2]
[425896900,1782030662000,-500.0,0.00027945,2]
[425896894,1782030662000,-500.0,0.00027945,2]
[425896897,1782030662000,-500.0,0.00027945,2]
[425896907,1782030662000,-500.0,0.00027945,2]
[425896899,1782030662000,-500.0,0.00027945,2]
[425896893,1782030662000,-500.0,0.00027945,2]
[425896896,1782030662000,-500.0,0.00027945,2]
[425896909,1782030662000,-500.0,0.00027945,2]
[425896910,1782030662000,-500.0,0.00027945,2]
[425896904,1782030662000,-500.0,0.00027945,2]
[425896912,1782030662000,-622.18,0.00027945,2]
[425896906,1782030662000,-841.88,0.00027945,2]
[425896901,1782030662000,-500.0,0.00027945,2]
[425896911,1782030662000,-500.0,0.00027945,2]
[425896974,1782030663000,-500.0,0.00027945,2]
[425896975,1782030663000,-500.0,0.00027945,2]
[425896976,1782030663000,-320.78749321,0.00027945,2]
[425896973,1782030663000,-837.29,0.00027945,2]
[425896972,1782030663000,-517.22218434,0.00027945,2]
[425896968,1782030663000,-810.37,0.00027945,2]
[425896969,1782030663000,-500.0,0.00027945,2]
[425896970,1782030663000,-500.0,0.00027945,2]
[425896967,1782030663000,-1142.21,0.00027945,2]
[425896978,1782030663000,-500.0,0.00027945,2]
[425896971,1782030663000,-500.0,0.00027945,2]
[425896977,1782030663000,-582.46,0.00027945,2]
[425896990,1782030663000,-500.0,0.00027945,2]
[425896986,1782030663000,-500.0,0.00027945,2]
[425896979,1782030663000,-500.0,0.00027945,2]
[425896982,1782030663000,-500.0,0.00027945,2]
[425896983,1782030663000,-1091.17,0.00027945,2]
[425896981,1782030663000,-500.0,0.00027945,2]
[425896984,1782030663000,-744.53,0.00027945,2]
[425896985,1782030663000,-500.0,0.00027945,2]
[425896996,1782030663000,-500.0,0.00027945,2]
[425896993,1782030663000,-500.0,0.00027945,2]
[425896987,1782030663000,-500.0,0.00027945,2]
[425896965,1782030663000,-500.0,0.00027945,2]
[425896980,1782030663000,-500.0,0.00027945,2]
[425896964,1782030663000,-500.0,0.00027945,2]
[425896943,1782030663000,-1173.97,0.00027945,2]
[425896962,1782030663000,-500.0,0.00027945,2]
[425896939,1782030663000,-500.0,0.00027945,2]
[425896941,1782030663000,-347.43657631,0.00027945,2]
[425896942,1782030663000,-500.0,0.00027945,2]
[425896992,1782030663000,-500.0,0.00027945,2]
[425896938,1782030663000,-775.21,0.00027945,2]
[425896940,1782030663000,-500.0,0.00027945,2]
[425896937,1782030663000,-500.0,0.00027945,2]
[425896950,1782030663000,-1170.07,0.00027945,2]
[425896946,1782030663000,-4723.42,0.00027945,2]
[425896953,1782030663000,-500.0,0.00027945,2]
[425896945,1782030663000,-500.0,0.00027945,2]
[425896949,1782030663000,-500.0,0.00027945,2]
[425896963,1782030663000,-542.47,0.00027945,2]
[425896954,1782030663000,-500.0,0.00027945,2]
[425896947,1782030663000,-728.91,0.00027945,2]
[425896952,1782030663000,-500.0,0.00027945,2]
[425896951,1782030663000,-500.0,0.00027945,2]
[425896948,1782030663000,-500.0,0.00027945,2]
[425896958,1782030663000,-1124.0,0.00027945,2]
[425896960,1782030663000,-500.0,0.00027945,2]
[425896961,1782030663000,-500.0,0.00027945,2]
[425896957,1782030663000,-1108.41,0.00027945,2]
[425896956,1782030663000,-500.0,0.00027945,2]
[425896955,1782030663000,-500.0,0.00027945,2]
[425896966,1782030663000,-1703.22,0.00027945,2]
[425896959,1782030663000,-606.62,0.00027945,2]
[425896944,1782030663000,-567.62,0.00027945,2]
[425896995,1782030663000,-378.40534981,0.00027945,2]
[425896991,1782030663000,-500.0,0.00027945,2]
[425896989,1782030663000,-500.0,0.00027945,2]
[425897023,1782030663000,-500.0,0.00027945,2]
[425897026,1782030663000,-500.0,0.00027945,2]
[425897029,1782030663000,-1207.68,0.00027945,2]
[425897027,1782030663000,-3862.56,0.00027945,2]
[425897025,1782030663000,-500.0,0.00027945,2]
[425897033,1782030663000,-500.0,0.00027945,2]
[425897032,1782030663000,-242.65716228,0.00027945,2]
[425897030,1782030663000,-500.0,0.00027945,2]
[425897031,1782030663000,-541.65,0.00027945,2]
[425897028,1782030663000,-1028.12,0.00027945,2]
[425897036,1782030663000,-500.0,0.00027945,2]
[425897038,1782030663000,-672.54,0.00027945,2]
[425897024,1782030663000,-500.0,0.00027945,2]
[425897043,1782030663000,-500.0,0.00027945,2]
[425897046,1782030663000,-500.0,0.00027945,2]
[425897045,1782030663000,-1512.61,0.00027945,2]
[425897044,1782030663000,-500.0,0.00027945,2]
[425897042,1782030663000,-500.0,0.00027945,2]
[425897041,1782030663000,-3679.81,0.00027945,2]
[425897037,1782030663000,-1385.81,0.00027945,2]
[425897047,1782030663000,-500.0,0.00027945,2]
[425897048,1782030663000,-5605.99,0.00027945,2]
[425897049,1782030663000,-639.64,0.00027945,2]
[425897050,1782030663000,-500.0,0.00027945,2]
[425897051,1782030663000,-927.82,0.00027945,2]
[425896997,1782030663000,-575.96,0.00027945,2]
[425897040,1782030663000,-500.0,0.00027945,2]
[425897035,1782030663000,-500.0,0.00027945,2]
[425897039,1782030663000,-500.0,0.00027945,2]
[425897018,1782030663000,-616.94,0.00027945,2]
[425896988,1782030663000,-500.0,0.00027945,2]
[425897034,1782030663000,-500.0,0.00027945,2]
[425896994,1782030663000,-627.76,0.00027945,2]
[425896999,1782030663000,-525.59,0.00027945,2]
[425897009,1782030663000,-500.0,0.00027945,2]
[425896998,1782030663000,-500.0,0.00027945,2]
[425897000,1782030663000,-500.0,0.00027945,2]
[425897001,1782030663000,-1347.36,0.00027945,2]
[425897004,1782030663000,-500.0,0.00027945,2]
[425897006,1782030663000,-500.0,0.00027945,2]
[425897008,1782030663000,-500.0,0.00027945,2]
[425897003,1782030663000,-3065.16,0.00027945,2]
[425897005,1782030663000,-500.0,0.00027945,2]
[425897007,1782030663000,-500.0,0.00027945,2]
[425897013,1782030663000,-1000.0,0.00027945,2]
[425897010,1782030663000,-1748.67,0.00027945,2]
[425897022,1782030663000,-559.91,0.00027945,2]
[425897014,1782030663000,-561.78,0.00027945,2]
[425897015,1782030663000,-637.56,0.00027945,2]
[425897021,1782030663000,-4314.51,0.00027945,2]
[425897020,1782030663000,-500.0,0.00027945,2]
[425897016,1782030663000,-500.0,0.00027945,2]
[425897011,1782030663000,-500.0,0.00027945,2]
[425897012,1782030663000,-563.39,0.00027945,2]
[425897002,1782030663000,-500.0,0.00027945,2]
[425897019,1782030663000,-500.0,0.00027945,2]
[425897017,1782030663000,-901.37,0.00027945,2]
[425897087,1782030664000,-500.0,0.00027945,2]
[425897092,1782030664000,-552.58912641,0.00027945,2]
[425897086,1782030664000,-500.0,0.00027945,2]
[425897094,1782030664000,-500.0,0.00027945,2]
[425897093,1782030664000,-835.12,0.00027945,2]
[425897096,1782030664000,-500.0,0.00027945,2]
[425897085,1782030664000,-500.0,0.00027945,2]
[425897089,1782030664000,-1139.19,0.00027945,2]
[425897090,1782030664000,-500.0,0.00027945,2]
[425897097,1782030664000,-500.0,0.00027945,2]
[425897095,1782030664000,-668.87,0.00027945,2]
[425897088,1782030664000,-640.67,0.00027945,2]
[425897091,1782030664000,-500.0,0.00027945,2]
[425897105,1782030664000,-1085.27,0.00027945,2]
[425897099,1782030664000,-613.52,0.00027945,2]
[425897100,1782030664000,-573.43,0.00027945,2]
[425897106,1782030664000,-500.0,0.00027945,2]
[425897107,1782030664000,-261.36781844,0.00027945,2]
[425897103,1782030664000,-500.0,0.00027945,2]
[425897102,1782030664000,-500.0,0.00027945,2]
[425897104,1782030664000,-567.55021714,0.00027945,2]
[425897098,1782030664000,-500.0,0.00027945,2]
[425897108,1782030664000,-500.0,0.00027945,2]
[425897110,1782030664000,-500.0,0.00027945,2]
[425897101,1782030664000,-500.0,0.00027945,2]
[425897112,1782030664000,-500.0,0.00027945,2]
[425897079,1782030664000,-813.38,0.00027945,2]
[425897109,1782030664000,-300.0,0.00027945,2]
[425897084,1782030664000,-2372.91,0.00027945,2]
[425897058,1782030664000,-500.0,0.00027945,2]
[425897082,1782030664000,-500.0,0.00027945,2]
[425897120,1782030664000,-500.0,0.00027945,2]
[425897055,1782030664000,-500.0,0.00027945,2]
[425897053,1782030664000,-500.0,0.00027945,2]
[425897052,1782030664000,-500.0,0.00027945,2]
[425897056,1782030664000,-1872.05,0.00027945,2]
[425897054,1782030664000,-1575.21,0.00027945,2]
[425897060,1782030664000,-500.0,0.00027945,2]
[425897059,1782030664000,-500.0,0.00027945,2]